bitfinex-derivatives/quotes_SOLF0:USTF0_20260202
["timestamp","ask_amount","ask_price","bid_price","bid_amount"]
[1770002763776,62.06292366,97.189,97.087,144.3516]
[1770002763978,62.06292366,97.187,97.108,144.3194]
[1770002764180,62.06292366,97.187,97.008,144.468]
[1770002764181,62.06292366,97.224,97.131,144.2865]
[1770002764378,62.06292366,97.188,97.095,144.3394]
[1770002764578,62.06292366,97.263,97.177,144.2176]
[1770002764788,62.06292366,97.263,97.116,144.3085]
[1770002764789,62.06292366,97.263,97.189,144.199]
[1770002764985,62.06292366,97.263,97.165,144.2356]
[1770002765185,62.06292366,97.263,97.168,144.2301]
[1770002765380,62.06292366,97.263,97.077,741.926]
[1770002765381,62.06292366,97.263,97.15,22.26309874]
[1770002765582,62.04591101,97.261,97.14,22.26309874]
[1770002765786,62.04591101,97.259,97.14,22.26309874]
[1770002765993,62.04591101,97.257,97.11,22.26309874]
[1770002766288,62.04591101,97.294,97.17,22.26309874]
[1770002766490,62.04591101,97.327,97.17,22.26309874]
[1770002766687,62.04591101,97.325,97.17,124.0]
[1770002766886,62.04591101,97.323,97.18,22.26309874]
[1770002767083,62.04591101,97.299,97.13,22.26309874]
[1770002767285,62.04591101,97.269,97.1,22.26309874]
[1770002767490,62.02795046,97.267,97.1,146.26309874]
[1770002767683,62.02843748,97.265,97.1,146.26309874]
[1770002767882,62.02843748,97.264,97.13,22.26309874]
[1770002768092,62.02843748,97.298,97.16,22.26309874]
[1770002768391,62.02843748,97.296,97.13,22.26309874]
[1770002768592,62.02843748,97.294,97.13,22.26309874]
[1770002768886,62.02843748,97.269,97.13,22.26309874]
[1770002769191,62.02843748,97.239,97.1,22.26309874]
[1770002769389,62.00440172,97.229,97.1,22.26309874]
[1770002769593,62.00440172,97.317,97.15,22.26309874]
[1770002769788,62.00440172,97.299,97.15,22.26309874]
[1770002769990,62.00440172,97.297,97.15,22.26309874]
[1770002770195,62.00440172,97.295,97.15,22.26309874]
[1770002770691,62.00440172,97.295,97.18,22.26309874]
[1770002770894,62.00440172,97.295,97.15,22.26309874]
[1770002771191,62.00440172,97.328,97.18,22.26309874]
[1770002771386,61.95235436,97.326,97.18,22.26309874]
[1770002771592,61.95235436,97.326,97.21,22.26309874]
[1770002771789,8.58891544,97.533,97.148,149.54]
[1770002771790,61.95235436,97.359,97.24,22.26309874]
[1770002772087,22.26309874,97.56,97.2,22.26309874]
[1770002772088,61.95235436,97.439,97.3,22.26309874]
[1770002772286,61.95235436,97.439,97.221,164.54]
[1770002772287,61.95235436,97.439,97.33,22.26309874]
[1770002772484,61.95235436,97.419,97.26,22.26309874]
[1770002772683,61.95235436,97.419,97.112,31.09738472]
[1770002772684,61.95235436,97.359,97.18,22.26309874]
[1770002772988,22.26309874,97.36,97.19,22.26309874]
[1770002772989,61.95235436,97.329,97.19,22.26309874]
[1770002773188,61.95235436,97.329,97.22,22.26309874]
[1770002773386,61.95596809,97.368,97.25,22.26309874]
[1770002773584,61.95596809,97.368,97.122,164.52]
[1770002773585,61.95596809,97.368,97.142,25.28779753]
[1770002773785,61.95596809,97.368,97.122,164.52]
[1770002773786,61.95596809,97.368,97.22,22.26309874]
[1770002774583,61.95596809,97.359,97.2,22.26309874]
[1770002775190,61.95596809,97.357,97.2,22.26309874]
[1770002775489,61.99471341,97.355,97.2,22.26309874]
[1770002775692,61.99471341,97.299,97.17,22.26309874]
[1770002775883,61.99471341,97.299,97.14,22.26309874]
[1770002776082,61.99471341,97.297,97.14,22.26309874]
[1770002776287,61.99471341,97.295,97.14,22.26309874]
[1770002776487,61.99471341,97.293,97.14,22.26309874]
[1770002776683,61.99471341,97.329,97.17,22.26309874]
[1770002776883,61.99471341,97.327,97.2,22.26309874]
[1770002777081,61.99471341,97.327,97.11,149.10736912]
[1770002777082,61.99471341,97.327,97.17,22.26309874]
[1770002777287,2.5938237,97.326,97.17,22.26309874]
[1770002777490,64.59132703,97.325,97.17,22.26309874]
[1770002777692,61.99750333,97.323,97.17,22.26309874]
[1770002777888,61.99750333,97.323,97.11,124.0]
[1770002778087,61.99750333,97.321,97.15,22.26309874]
[1770002778287,61.99750333,97.319,97.15,22.26309874]
[1770002778494,61.99750333,97.317,97.15,22.26309874]
[1770002778700,61.99750333,97.317,97.18,22.26309874]
[1770002779194,61.99750333,97.315,97.18,22.26309874]
[1770002779396,61.99560026,97.313,97.18,22.26309874]
[1770002779592,61.99560026,97.313,97.11,124.0]
[1770002779593,61.99560026,97.309,97.11,124.0]
[1770002779793,61.99560026,97.279,97.12,22.26309874]
[1770002779991,61.99560026,97.277,97.12,22.26309874]
[1770002780194,22.26309874,97.28,97.12,22.26309874]
[1770002780195,61.99560026,97.275,97.12,22.26309874]
[1770002780394,61.99560026,97.273,97.12,22.26309874]
[1770002780592,61.99560026,97.271,97.12,22.26309874]
[1770002780891,61.99560026,97.249,97.11,124.0]
[1770002781791,61.99560026,97.249,97.13,22.26309874]
[1770002781998,61.99917357,97.289,97.13,22.26309874]
[1770002782197,61.99917357,97.287,97.13,22.26309874]
[1770002782496,61.99917357,97.319,97.19,22.26309874]
[1770002782791,30.72,97.426,97.11,124.0]
[1770002782792,61.99917357,97.317,97.16,22.26309874]
[1770002783894,62.00833616,97.289,97.16,22.26309874]
[1770002784398,62.00833616,97.289,97.11,124.0]
[1770002784399,62.00833616,97.289,97.13,22.26309874]
[1770002784798,62.00833616,97.269,97.13,22.26309874]
[1770002784994,62.00833616,97.269,97.11,124.0]
[1770002785203,62.00833616,97.269,97.1,22.26309874]
[1770002785595,62.00833616,97.269,97.11,124.0]
[1770002786098,62.00833616,97.269,97.1,22.26309874]
[1770002786290,62.14246944,97.239,97.1,22.26309874]
[1770002786497,62.14246944,97.209,97.07,22.26309874]
[1770002787204,62.14246944,97.209,97.07,146.26309874]
[1770002787896,62.14246944,97.209,97.07,124.0]
[1770002788090,62.14943906,97.179,97.03,22.26309874]
[1770002788493,62.14943906,97.149,97.0,22.26309874]
[1770002788802,62.14943906,97.119,96.97,22.26309874]
[1770002789398,62.34181027,97.183,97.06,22.26309874]
[1770002789597,62.34181027,97.183,96.983,30.89]
[1770002789791,62.34181027,97.183,97.06,22.26309874]
[1770002791199,62.34181027,97.183,96.99,154.89]
[1770002791498,62.34181027,97.183,97.07,22.26309874]
[1770002791706,62.42957121,97.179,96.99,124.0]
[1770002791897,62.42957121,97.149,96.98,22.26309874]
[1770002792097,62.42957121,97.149,97.01,22.26309874]
[1770002792604,62.42957121,97.149,97.04,22.26309874]
[1770002792992,22.26309874,97.2,97.04,22.26309874]
[1770002793194,62.42957121,97.169,97.04,22.26309874]
[1770002793801,62.42957121,97.169,97.02,124.0]
[1770002794202,62.42957121,97.169,97.04,22.26309874]
[1770002794805,62.42957121,97.169,97.01,22.26309874]
[1770002795006,62.40701939,97.139,96.906,25.10736912]
[1770002795306,62.40701939,97.109,96.94,22.26309874]
[1770002795609,62.40701939,97.109,97.0,22.26309874]
[1770002795903,62.40701939,97.109,96.92,124.0]
[1770002796109,62.40701939,97.109,96.95,22.26309874]
[1770002796306,62.40701939,97.109,96.98,22.26309874]
[1770002797799,62.40701939,97.109,96.876,410.64]
[1770002797800,62.39705452,97.069,96.814,25.0486493]
[1770002797997,62.39705452,97.039,96.87,22.26309874]
[1770002798308,62.39705452,97.039,96.89,22.26309874]
[1770002798503,62.39705452,97.039,96.92,22.26309874]
[1770002798813,62.39705452,97.077,96.881,30.89]
[1770002799005,62.39705452,97.077,96.97,22.26309874]
[1770002799403,62.39705452,97.077,96.94,22.26309874]
[1770002799809,62.3870191,97.069,96.89,124.0]
[1770002800107,62.3870191,97.069,96.96,22.26309874]
[1770002800306,62.3870191,97.099,96.995,144.4888]
[1770002800509,62.3870191,97.099,96.989,9.289]
[1770002800510,62.3870191,97.095,96.994,144.4892]
[1770002800703,62.3870191,97.083,96.983,144.5061]
[1770002800907,62.3870191,97.083,96.983,153.7957]
[1770002801105,62.3870191,97.083,97.02,144.4515]
[1770002801303,62.3870191,97.127,97.02,144.4515]
[1770002801506,62.3870191,97.127,97.049,144.4071]
[1770002801708,62.3870191,97.127,97.05,144.4054]
[1770002801905,62.3870191,97.127,97.039,144.4218]
[1770002802204,62.37923237,97.132,97.032,144.4328]
[1770002802509,22.26309874,97.15,96.97,144.5245]
[1770002802510,62.37923237,97.118,97.021,144.4495]
[1770002802708,62.37923237,97.116,97.021,144.4495]
[1770002802903,62.37923237,97.116,96.96,144.5405]
[1770002802904,206.79083237,97.047,96.946,144.561]
[1770002803106,62.37923237,97.037,96.933,144.5799]
[1770002803299,62.37923237,97.037,96.966,144.5307]
[1770002803503,62.37923237,97.037,96.944,144.5642]
[1770002803702,62.37923237,97.037,96.968,144.5278]
[1770002804107,62.37923237,97.037,96.977,144.5152]
[1770002804301,62.37923237,97.037,96.92,22.26309874]
[1770002804302,62.37923237,97.037,96.955,153.8402]
[1770002804500,62.37923237,97.037,96.96,144.5404]
[1770002804699,62.37923237,97.037,96.938,144.5736]
[1770002804910,62.37923237,97.037,96.94,144.5706]
[1770002805101,62.37923237,97.037,96.949,144.5562]
[1770002805302,62.40174789,97.012,96.916,153.9023]
[1770002805610,62.40174789,97.01,96.925,144.592]
[1770002805808,144.3228,97.107,96.877,271.28878627]
[1770002805809,62.40174789,97.049,96.959,144.5417]
[1770002806110,62.40174789,97.03,96.929,144.5862]
[1770002806309,62.40174789,97.022,96.926,144.5907]
[1770002806611,62.40174789,97.008,96.922,144.5969]
[1770002807006,62.40174789,97.008,96.932,144.5826]
[1770002807204,62.40179072,97.039,96.957,144.5442]
[1770002807504,62.40179072,97.039,96.957,153.8363]
[1770002808010,62.40179072,97.039,96.947,144.56]
[1770002808211,62.40179072,97.039,96.954,144.5486]
[1770002808610,62.40179072,97.039,96.964,144.5348]
[1770002808813,62.40179072,97.039,96.957,144.5447]
[1770002809008,62.4111926,97.074,96.998,144.4833]
[1770002809210,144.2353,97.166,97.011,144.4639]
[1770002809211,62.4111926,97.107,97.011,144.4639]
[1770002809411,62.47933134,97.093,96.994,144.4894]
[1770002809713,62.47933134,97.073,96.986,144.5015]
[1770002810308,62.47933134,97.073,96.982,153.7968]
[1770002810511,62.47933134,97.108,97.02,144.451]
[1770002810718,62.47933134,97.108,97.027,9.2854]
[1770002811017,62.47933134,97.139,97.063,144.387]
[1770002811218,62.47933134,97.139,97.052,144.4027]
[1770002811413,62.47933134,97.139,97.061,153.6723]
[1770002811618,62.48660189,97.17,97.089,144.3477]
[1770002811818,62.48660189,97.212,97.103,144.3275]
[1770002812018,62.48660189,97.19,97.088,144.3496]
[1770002812215,62.48660189,97.182,97.08,22.26309874]
[1770002812415,62.48660189,97.182,97.082,144.359]
[1770002812716,62.48660189,97.182,97.006,144.4721]
[1770002812717,62.48660189,97.168,97.065,144.3839]
[1770002812916,62.48660189,97.157,97.062,144.3889]
[1770002813109,62.48660189,97.157,97.006,144.4721]
[1770002813110,62.48660189,97.157,97.058,144.3938]
[1770002813310,62.48660189,97.157,96.949,25.04132012]
[1770002813311,62.60058015,97.112,97.012,144.4623]
[1770002813515,62.60058015,97.098,97.016,144.4573]
[1770002813712,62.60058015,97.098,96.97,22.26309874]
[1770002813713,62.60058015,97.098,97.004,144.4741]
[1770002814014,62.60058015,97.134,97.043,144.4163]
[1770002814215,62.60058015,97.129,97.031,144.4345]
[1770002814416,62.60058015,97.123,97.023,144.4465]
[1770002814615,62.60058015,97.116,97.024,144.4453]
[1770002814813,62.60058015,97.116,97.039,144.4219]
[1770002815014,144.2809,97.135,97.028,144.4396]
[1770002815219,62.60058015,97.11,97.013,144.4607]
[1770002815418,144.3337,97.1,96.998,144.484]
[1770002815609,62.81056561,97.099,96.998,144.484]
[1770002816012,62.81056561,97.099,97.008,144.4691]
[1770002816216,62.81056561,97.133,97.032,144.4325]
[1770002816413,144.2895,97.129,97.032,144.4325]
[1770002816617,62.81056561,97.121,97.033,144.4319]
[1770002816815,62.81056561,97.089,96.986,144.5017]
[1770002817022,62.81056561,97.089,97.023,144.4462]
[1770002817215,62.81056561,97.089,97.023,144.4465]
[1770002817416,62.81056561,97.089,97.011,144.464]
[1770002817616,62.83941982,97.128,97.03,144.4357]
[1770002817913,62.83941982,97.095,97.02,144.4511]
[1770002818114,62.83941982,97.095,97.016,9.2865]
[1770002818513,22.26309874,97.14,96.98,22.26309874]
[1770002818514,62.83941982,97.129,97.03,144.4361]
[1770002818713,62.83941982,97.129,97.04,144.4214]
[1770002819223,62.83941982,97.096,97.005,144.4729]
[1770002819824,1.79252548,97.148,96.97,22.26309874]
[1770002819825,62.77394663,97.082,96.984,144.5044]
[1770002820024,62.77394663,97.082,97.011,144.4645]
[1770002820319,62.77394663,97.11,97.009,144.4673]
[1770002820521,62.77394663,97.104,97.0,22.26309874]
[1770002820717,62.77394663,97.104,96.901,25.04132012]
[1770002820718,62.77394663,97.136,97.012,1.79229468]
[1770002820923,62.77394663,97.114,97.036,144.4269]
[1770002821123,62.77394663,97.124,97.024,144.4449]
[1770002821316,62.77394663,97.124,97.0,22.26309874]
[1770002821317,72.05709799,97.118,97.03,9.2851]
[1770002821517,62.78029799,97.118,97.03,153.7213]
[1770002821717,144.2676,97.144,97.032,144.4326]
[1770002821920,62.78029799,97.136,97.03,22.26309874]
[1770002822125,62.78029799,97.136,97.06,144.391]
[1770002822419,62.78029799,97.136,96.985,144.503]
[1770002822420,62.78029799,97.07,97.012,1.79207778]
[1770002822623,62.7802591,97.024,96.928,144.588]
[1770002822921,62.7802591,97.007,96.89,33.44175284]
[1770002823121,62.7802591,97.037,96.948,144.5583]
[1770002823318,62.7802591,97.037,96.953,144.5501]
[1770002823525,62.7802591,97.037,96.895,144.6378]
[1770002823526,62.65742121,97.068,96.995,144.488]
[1770002823726,62.65742121,97.087,96.989,144.4965]
[1770002823922,62.65742121,97.064,96.968,144.5288]
[1770002824125,62.65742121,97.064,96.95,33.44175284]
[1770002824126,62.65742121,97.06,96.987,144.5001]
[1770002824317,62.65742121,97.06,96.932,144.5817]
[1770002824318,62.65742121,97.099,97.002,144.4775]
[1770002824620,144.3699,97.075,96.98,33.44175284]
[1770002824820,62.65742121,97.138,97.04,144.4206]
[1770002825025,153.5403,97.145,97.054,9.2828]
[1770002825322,62.65742121,97.144,97.069,144.3773]
[1770002825527,62.64519566,97.142,97.053,144.4022]
[1770002825727,62.64519566,97.128,97.032,144.4336]
[1770002825929,62.64519566,97.121,97.026,144.4421]
[1770002826124,9.2774,97.112,97.011,153.7515]
[1770002826329,62.64519566,97.111,97.02,144.4504]
[1770002826637,62.64519566,97.111,96.923,144.5953]
[1770002826638,9.2799,97.085,96.97,33.44175284]
[1770002826818,62.64519566,97.107,97.012,144.4627]
[1770002827124,62.64519566,97.101,96.99,33.44175284]
[1770002827322,62.65000762,97.136,96.99,33.44175284]
[1770002827529,62.65025527,97.12,97.02,177.89265284]
[1770002827830,62.65025527,97.12,97.024,153.7303]
[1770002828325,144.2043,97.187,96.993,144.4915]
[1770002828326,144.3511,97.088,96.993,144.4915]
[1770002828529,62.65025527,97.087,96.991,144.4945]
[1770002828831,62.65025527,97.059,96.987,144.5006]
[1770002829126,62.65025527,97.091,97.003,144.4759]
[1770002829325,62.65025527,97.091,96.994,144.4901]
[1770002829523,62.71480518,97.083,96.983,144.506]
[1770002829829,62.71480518,97.077,96.983,144.5055]
[1770002830023,62.71480518,97.059,96.963,144.5359]
[1770002830229,62.71480518,97.059,96.96,33.44175284]
[1770002830230,62.71480518,97.059,96.978,144.5137]
[1770002830623,62.71480518,97.059,96.974,9.2905]
[1770002830820,62.71480518,97.04,96.941,144.5691]
[1770002831031,62.71480518,97.035,96.951,144.5529]
[1770002831224,62.71480518,97.035,96.944,144.5644]
[1770002831419,62.71480518,97.035,96.91,33.44175284]
[1770002831420,62.71480518,97.035,96.954,144.5489]
[1770002831723,62.67346128,97.022,96.92,144.5997]
[1770002831919,144.3408,97.095,96.911,144.6138]
[1770002831920,62.67346128,97.006,96.911,144.6138]
[1770002832124,62.67346128,97.006,96.933,144.5806]
[1770002832324,62.67346128,97.041,96.948,144.5583]
[1770002832831,62.67346128,97.033,96.945,144.5631]
[1770002833226,62.67346128,97.064,96.977,144.5153]
[1770002833421,62.67346128,97.064,96.986,144.5008]
[1770002833628,62.67346128,97.064,96.988,144.4987]
[1770002833826,62.65395517,97.094,97.003,144.4766]
[1770002834020,62.65395517,97.094,97.002,144.4782]
[1770002834327,62.65395517,97.128,96.977,144.5143]
[1770002834526,62.65395517,97.117,97.031,144.4339]
[1770002834719,144.1908,97.196,96.971,411.16]
[1770002834720,62.65395517,97.114,96.971,411.16]
[1770002834926,62.65395517,97.097,96.994,144.4897]
[1770002835424,62.6705038,97.119,97.023,144.4462]
[1770002835626,62.6705038,97.119,97.0,33.44175284]
[1770002835924,62.6705038,97.119,97.02,144.4511]
[1770002836124,62.6705038,97.119,97.044,144.4156]
[1770002836326,62.6705038,97.186,97.105,144.3246]
[1770002836525,62.6705038,97.186,97.06,33.44175284]
[1770002836526,62.6705038,97.186,97.111,144.3151]
[1770002836929,62.6705038,97.186,97.099,144.3338]
[1770002837234,62.6705038,97.185,97.088,144.3499]
[1770002837532,62.68145584,97.216,97.115,144.3094]
[1770002837729,62.68145584,97.244,97.142,144.2698]
[1770002837928,62.68145584,97.244,97.172,144.2254]
[1770002838132,59.25660812,97.244,97.151,144.2566]
[1770002838329,59.25660812,97.244,97.15,33.44175284]
[1770002838529,144.1119,97.249,97.145,144.2649]
[1770002839332,144.0781,97.272,97.166,144.2333]
[1770002839529,11.57638765,97.454,97.15,33.44175284]
[1770002839530,144.0615,97.283,97.176,144.2186]
[1770002839731,144.0592,97.285,97.175,144.2204]
[1770002839928,144.0462,97.294,97.194,144.1922]
[1770002840134,61.04570098,97.317,97.22,144.1531]
[1770002840533,61.04570098,97.307,97.21,33.44175284]
[1770002840733,61.04570098,97.287,97.189,144.1995]
[1770002840927,61.04570098,97.323,97.232,144.1351]
[1770002841127,61.04570098,97.323,97.252,144.1057]
[1770002841328,61.04570098,97.323,97.194,144.1922]
[1770002841329,61.06111367,97.346,97.261,144.0928]
[1770002841533,61.06111367,97.346,97.271,144.0786]
[1770002841734,61.06111367,97.346,97.275,144.072]
[1770002842037,61.06111367,97.346,97.275,144.0723]
[1770002842231,61.06111367,97.381,97.284,144.0581]
[1770002842531,143.942,97.364,97.262,144.091]
[1770002842731,1.78803098,97.388,97.283,144.0603]
[1770002842931,143.9382,97.366,97.26,33.44175284]
[1770002843137,61.06111367,97.349,97.251,144.1081]
[1770002843329,143.9902,97.331,97.231,144.1378]
[1770002843532,61.00103991,97.322,97.231,144.1367]
[1770002843731,61.00103991,97.307,97.222,144.1507]
[1770002843934,61.00103991,97.307,97.209,144.1693]
[1770002844137,61.00103991,97.307,97.208,144.1715]
[1770002844536,33.44175284,97.34,97.198,144.1868]
[1770002844537,144.0336,97.302,97.198,144.1868]
[1770002844738,61.00103991,97.273,97.172,144.2248]
[1770002844936,61.00103991,97.273,97.176,144.2192]
[1770002845136,61.00103991,97.273,97.186,144.2042]
[1770002845334,61.00103991,97.273,97.195,144.19]
[1770002845536,204.98311476,97.274,97.178,144.216]
[1770002845736,144.0247,97.308,97.208,144.1717]
[1770002846038,144.0318,97.303,97.197,144.1874]
[1770002846241,60.90741476,97.336,97.19,33.44175284]
[1770002846437,143.8872,97.401,97.138,432.826]
[1770002846438,60.90741476,97.369,97.285,144.0576]
[1770002846831,60.90741476,97.369,97.219,144.1558]
[1770002846832,143.9767,97.34,97.239,144.1253]
[1770002847129,144.0723,97.276,97.16,33.44175284]
[1770002847333,60.90741476,97.271,97.187,144.2033]
[1770002847530,60.90741476,97.271,97.101,144.3309]
[1770002847531,60.93885431,97.258,97.13,33.44175284]
[1770002847734,60.93885431,97.258,97.077,144.3658]
[1770002847735,144.1692,97.21,97.105,144.3244]
[1770002848038,60.93885431,97.221,97.1,33.44175284]
[1770002848337,60.93885431,97.211,97.111,144.315]
[1770002848536,144.1807,97.203,97.1,144.3319]
[1770002848737,60.93885431,97.202,97.12,144.3028]
[1770002848939,60.93885431,97.202,97.118,144.3056]
[1770002849340,60.93885431,97.202,97.121,153.5765]
[1770002849542,60.93885431,97.202,97.108,144.3206]
[1770002849836,60.94607741,97.232,97.131,144.2852]
[1770002850042,144.1394,97.231,97.131,144.2852]
[1770002850339,60.94607741,97.232,97.14,144.2726]
[1770002850540,60.94607741,97.232,97.15,144.2575]
[1770002850840,60.94607741,97.232,97.14,9.2746]
[1770002851036,144.1426,97.228,97.128,144.2895]
[1770002851236,60.94607741,97.215,97.115,144.3101]
[1770002851446,60.94607741,97.215,97.11,33.44175284]
[1770002851447,60.94607741,97.215,97.136,144.2788]
[1770002851741,205.02447003,97.24,97.137,144.2773]
[1770002851933,205.02447003,97.24,97.092,144.3444]
[1770002851934,60.89847003,97.24,97.144,144.2669]
[1770002852134,60.89847003,97.232,97.132,9.2754]
[1770002852336,60.89847003,97.213,97.031,144.434]
[1770002852633,33.44175284,97.25,97.031,144.434]
[1770002852634,60.89847003,97.216,97.128,144.2898]
[1770002852841,60.89847003,97.216,97.07,144.3764]
[1770002852842,60.89847003,97.216,97.117,144.3062]
[1770002853044,60.89847003,97.216,97.07,144.3764]
[1770002853045,60.89847003,97.216,97.13,153.5622]
[1770002853344,60.89235402,97.192,97.092,144.3434]
[1770002853539,60.89235402,97.192,97.108,144.3192]
[1770002853739,9.267,97.221,97.124,144.2956]
[1770002854039,144.0805,97.27,97.052,144.4037]
[1770002854040,60.89235402,97.218,97.115,144.3102]
[1770002854244,60.89235402,97.21,97.121,144.3002]
[1770002854536,144.1306,97.237,97.11,33.44175284]
[1770002854843,144.1488,97.224,97.124,144.296]
[1770002855035,60.89235402,97.225,97.131,144.2853]
[1770002855241,144.1438,97.228,97.11,33.44175284]
[1770002855242,60.89235402,97.206,97.12,144.3017]
[1770002855437,60.89235402,97.206,97.128,144.29]
[1770002855640,60.86237918,97.241,97.166,144.2333]
[1770002855835,60.86237918,97.274,97.196,144.1888]
[1770002856039,60.86237918,97.302,97.233,144.1348]
[1770002856249,143.8864,97.402,97.2,33.44175284]
[1770002856250,60.86237918,97.332,97.267,144.0847]
[1770002856436,60.86237918,97.364,97.277,144.0698]
[1770002856642,60.86237918,97.396,97.298,144.0385]
[1770002856841,60.86237918,97.396,97.229,144.1397]
[1770002856842,60.86237918,97.352,97.255,144.1019]
[1770002857036,60.86237918,97.345,97.23,33.44175284]
[1770002857236,60.86237918,97.345,97.255,144.102]
[1770002857441,60.86403593,97.339,97.241,144.1224]
[1770002857642,60.86376716,97.332,97.23,177.58105284]
[1770002857843,60.86376716,97.33,97.238,144.1263]
[1770002858045,60.86376716,97.33,97.201,410.56]
[1770002858046,60.86376716,97.33,97.236,144.1292]
[1770002858344,60.86376716,97.417,97.332,143.9878]
[1770002858647,60.86376716,97.464,97.355,143.9541]
[1770002858851,60.86376716,97.422,97.32,177.44715284]
[1770002859043,60.86376716,97.397,97.29,33.44175284]
[1770002859249,60.8729274,97.355,97.26,33.44175284]
[1770002859448,143.9928,97.33,97.221,144.1522]
[1770002859652,60.8729274,97.369,97.259,144.0951]
[1770002859849,33.44175284,97.37,97.237,144.1289]
[1770002859850,60.8729274,97.341,97.237,144.1289]
[1770002860156,60.8729274,97.341,97.246,144.1144]
[1770002860352,60.8729274,97.341,97.275,144.0717]
[1770002860551,60.8729274,97.337,97.236,144.1302]
[1770002860754,144.0241,97.308,97.2,144.184]
[1770002860950,143.9303,97.372,97.15,33.44175284]
[1770002860951,60.8729274,97.271,97.15,33.44175284]
[1770002861151,60.8729274,97.303,97.234,144.1325]
[1770002861455,177.41955284,97.34,97.18,33.44175284]
[1770002861456,33.44175284,97.34,97.18,33.44175284]
[1770002861648,33.44175284,97.34,96.992,31.09738472]
[1770002861649,143.8583,97.421,97.29,33.44175284]
[1770002861848,143.8956,97.395,97.286,144.0564]
[1770002862053,143.8794,97.406,97.295,144.042]
[1770002862351,143.9245,97.376,97.256,144.1001]
[1770002862656,143.8455,97.429,97.176,410.34]
[1770002862657,143.8824,97.404,97.287,144.0542]
[1770002862859,33.44175284,97.41,97.316,144.0118]
[1770002863052,143.8716,97.412,97.294,144.0444]
[1770002863252,143.9289,97.373,97.258,144.0969]
[1770002863555,30.48881455,97.379,97.279,144.0665]
[1770002863752,30.48881455,97.372,97.248,9.2643]
[1770002863955,30.48881455,97.372,97.092,24.84006173]
[1770002863956,30.48881455,97.346,97.245,144.1165]
[1770002864149,30.48881455,97.346,97.267,144.0843]
[1770002864360,30.48881455,97.346,97.248,144.1123]
[1770002864557,30.48881455,97.332,97.231,144.1371]
[1770002864952,30.48881455,97.3,97.221,144.1521]
[1770002865157,30.48881455,97.3,97.232,144.1363]
[1770002865353,30.48881455,97.3,97.198,144.1857]
[1770002865556,30.30828113,97.279,97.176,144.2185]
[1770002865863,30.30828113,97.279,97.102,144.3291]
[1770002865864,30.30828113,97.271,97.172,144.2255]
[1770002866058,30.30828113,97.271,97.13,33.44175284]
[1770002866059,30.30828113,97.271,97.173,144.2239]
[1770002866256,143.9834,97.336,97.092,144.3435]
[1770002866257,30.30828113,97.242,97.1,33.44175284]
[1770002866651,30.3086834,97.21,97.104,144.3262]
[1770002866849,30.3086834,97.21,97.142,144.2692]
[1770002867052,30.3086834,97.21,97.109,144.3186]
[1770002867252,30.3086834,97.194,97.09,144.3465]
[1770002867460,30.3086834,97.194,97.087,144.3509]
[1770002867754,30.16603457,97.19,97.097,144.3364]
[1770002867957,30.16603457,97.19,97.087,144.3518]
[1770002868159,30.16603457,97.186,97.087,144.3518]
[1770002868355,30.16603457,97.183,97.077,144.3666]
[1770002868562,30.16603457,97.173,97.065,144.384]
[1770002868758,30.16603457,97.173,97.087,144.3509]
[1770002869261,144.0704,97.277,97.04,33.44175284]
[1770002869262,30.16603457,97.166,97.065,144.3832]
[1770002869464,30.1143575,97.154,97.043,144.4168]
[1770002869658,30.1143575,97.154,97.056,144.3975]
[1770002869859,30.1143575,97.154,97.067,144.3807]
[1770002870058,30.1143575,97.154,97.065,144.3831]
[1770002870264,30.1143575,97.154,97.062,144.3884]
[1770002870466,30.1143575,97.154,97.084,144.3552]
[1770002870766,30.1143575,97.154,97.073,144.3724]
[1770002871361,30.1143575,97.154,97.061,144.3892]
[1770002871666,30.1143575,97.154,97.061,144.3902]
[1770002871862,30.09658613,97.226,97.01,124.0]
[1770002872055,30.09658613,97.257,97.168,144.2312]
[1770002872460,30.09658613,97.247,97.144,144.2664]
[1770002872759,30.09658613,97.247,97.099,410.46]
[1770002872760,30.09658613,97.241,97.142,144.269]
[1770002873063,30.09658613,97.19,97.097,144.336]
[1770002873566,30.09658613,97.19,97.116,144.3076]
[1770002873966,30.09555089,97.184,97.098,144.3351]
[1770002874162,30.09555089,97.184,97.128,144.2908]
[1770002874362,30.09555089,97.183,97.085,144.3543]
[1770002874565,30.09555089,97.183,97.032,144.4324]